fUSD/lending_fUSD_20250320
["ID","MTS","AMOUNT","RATE_DAILY","PERIOD"]
[356480801,1742508647620,-500.0,0.00047945,120]
[356480802,1742508647630,-765.29,0.00047945,120]
[356480803,1742508647640,-718.09736564,0.00047971,2]
[356480804,1742508647652,-528.15694927,0.00048,120]
[356480805,1742508647662,-409.325246,0.00048,120]
[356480806,1742508647671,-153.50333972,0.00048018,120]
[356480807,1742508647681,-9126.79166373,0.00048198,4]
[356480808,1742508647691,-9126.79166373,0.00048208,4]
[356480809,1742508647700,-150.0,0.00048218,120]
[356480810,1742508647710,-500.0,0.00048218,120]
[356480811,1742508647719,-500.0,0.00048218,120]
[356480812,1742508647729,-500.0,0.00048218,120]
[356480813,1742508647738,-500.0,0.00048218,120]
[356480814,1742508647748,-500.0,0.00048218,120]
[356480815,1742508647759,-500.0,0.00048218,120]
[356480816,1742508647770,-419.54543004,0.00048218,120]
[356480817,1742508647780,-430.24,0.00048218,120]
[356480818,1742508647789,-500.0,0.00048218,120]
[356480819,1742508647799,-500.0,0.00048218,120]
[356480820,1742508647814,-500.0,0.00048218,120]
[356480821,1742508647824,-500.0,0.00048218,120]
[356480822,1742508647834,-423.96,0.00048218,120]
[356480823,1742508647844,-543.0,0.00048218,120]
[356480824,1742508647853,-500.0,0.00048218,120]
[356480825,1742508647864,-500.0,0.00048218,120]
[356480826,1742508647876,-314.34,0.00048218,120]
[356480827,1742508647885,-634.72,0.00048218,120]
[356480828,1742508647895,-500.0,0.00048218,120]
[356480829,1742508647904,-500.0,0.00048218,120]
[356480830,1742508647915,-500.0,0.00048218,120]
[356480831,1742508647925,-500.0,0.00048218,120]
[356480832,1742508647935,-1011.74,0.00048218,120]
[356480833,1742508647945,-500.0,0.00048219,120]
[356480834,1742508647955,-500.0,0.00048219,120]
[356480835,1742508647965,-190.16,0.00048219,120]
[356480836,1742508647975,-765.29,0.00048219,120]
[356480837,1742508647984,-395.61,0.000483,7]
[356480838,1742508647994,-1049.77097897,0.00048329,10]
[356480839,1742508648003,-1096.40110874,0.00048329,10]
[356480840,1742508648013,-9126.79166373,0.00048482,4]
[356480841,1742508648022,-562.53,0.00048492,120]
[356480842,1742508648032,-500.0,0.00048492,120]
[356480843,1742508648041,-500.0,0.00048492,120]
[356480844,1742508648050,-500.0,0.00048492,120]
[356480845,1742508648060,-283.27,0.00048492,120]
[356480846,1742508648069,-500.0,0.00048492,120]
[356480847,1742508648079,-500.0,0.00048492,120]
[356480848,1742508648088,-500.0,0.00048492,120]
[356480849,1742508648098,-500.0,0.00048492,120]
[356480850,1742508648107,-500.0,0.00048492,120]
[356480851,1742508648117,-465.33,0.00048492,120]
[356480852,1742508648127,-500.0,0.00048492,120]
[356480853,1742508648136,-500.0,0.00048492,120]
[356480854,1742508648145,-407.80865146,0.00048492,120]
[356480855,1742508648154,-500.0,0.00048492,120]
[356480856,1742508648165,-500.0,0.00048492,120]
[356480857,1742508648175,-1011.74,0.00048492,120]
[356480858,1742508648184,-500.0,0.00048493,120]
[356480859,1742508648194,-500.0,0.00048493,120]
[356480860,1742508648204,-765.29,0.00048493,120]
[356480861,1742508648214,-200.0,0.0004867,120]
[356480862,1742508648224,-9126.79166373,0.00048756,4]
[356480863,1742508648233,-500.0,0.00048766,120]
[356480864,1742508648243,-500.0,0.00048766,120]
[356480865,1742508648252,-500.0,0.00048766,120]
[356480866,1742508648262,-500.0,0.00048766,120]
[356480867,1742508648271,-593.55,0.00048766,120]
[356480868,1742508648281,-557.39,0.00048766,120]
[356480869,1742508648290,-500.0,0.00048766,120]
[356480870,1742508648299,-500.0,0.00048766,120]
[356480871,1742508648309,-500.0,0.00048766,120]
[356480872,1742508648318,-500.0,0.00048766,120]
[356480873,1742508648328,-500.0,0.00048766,120]
[356480874,1742508648337,-500.0,0.00048766,120]
[356480875,1742508648346,-1011.74,0.00048766,120]
[356480876,1742508648356,-500.0,0.00048767,120]
[356480877,1742508648367,-500.0,0.00048767,120]
[356480878,1742508648377,-765.29,0.00048767,120]
[356480879,1742508648386,-153.50333972,0.00048795,120]
[356480880,1742508648396,-150.0,0.00049017,30]
[356480881,1742508648405,-150.0,0.00049017,30]
[356480882,1742508648415,-577.59943004,0.00049017,30]
[356480883,1742508648424,-213.68436829,0.00049017,30]
[356480884,1742508648433,-150.0,0.00049017,30]
[356480885,1742508648443,-665.29472403,0.00049017,30]
[356480886,1742508648452,-9126.79166373,0.00049031,4]
[356480887,1742508648461,-500.0,0.0004904,120]
[356480888,1742508648471,-500.0,0.0004904,120]
[356480889,1742508648480,-500.0,0.0004904,120]
[356480890,1742508648489,-500.0,0.0004904,120]
[356480891,1742508648498,-266.6,0.0004904,120]
[356480892,1742508648507,-584.84,0.0004904,120]
[356480893,1742508648517,-500.0,0.0004904,120]
[356480894,1742508648526,-500.0,0.0004904,120]
[356480895,1742508648536,-500.0,0.0004904,120]
[356480896,1742508648545,-303.0,0.0004904,120]
[356480897,1742508648554,-1011.74,0.0004904,120]
[356480898,1742508648564,-500.0,0.00049041,120]
[356480899,1742508648573,-500.0,0.00049041,120]
[356480900,1742508648583,-765.29,0.00049041,120]
[356480901,1742508648592,-242.3,0.00049179,120]
[356480902,1742508648602,-718.09736564,0.00049193,2]
[356480903,1742508648611,-2000.0,0.000493,2]
[356480904,1742508648621,-9126.79166373,0.00049305,4]
[356480905,1742508648630,-500.0,0.00049314,120]
[356480906,1742508648640,-500.0,0.00049314,120]
[356480907,1742508648649,-519.62,0.00049314,120]
[356480908,1742508648658,-500.0,0.00049314,120]
[356480909,1742508648667,-500.0,0.00049314,120]
[356480910,1742508648677,-500.0,0.00049314,120]
[356480911,1742508648686,-512.39,0.00049314,120]
[356480912,1742508648695,-1011.74,0.00049314,120]
[356480913,1742508648705,-500.0,0.00049315,120]
[356480914,1742508648714,-500.0,0.00049315,120]
[356480915,1742508648724,-765.29,0.00049315,120]
[356480916,1742508648733,-500.0,0.00049315,2]
[356480917,1742508648743,-3938.0,0.00049322,2]
[356480918,1742508648753,-151.0,0.00049322,2]
[356480919,1742508648762,-1014.0,0.00049322,2]
[356480920,1742508648771,-361.53232873,0.00049325,10]
[356480921,1742508648780,-500.65527052,0.00049325,10]
[356480922,1742508648789,-1000.0,0.00049343,120]
[356480923,1742508648802,-173.3194,0.0004942,87]
[356480924,1742508648820,-151.032106,0.00049498,120]
[356480925,1742508648836,-218.33604516,0.00049556,120]
[356480926,1742508648847,-153.50333972,0.00049573,120]
[356480927,1742508648858,-150.0,0.00049588,120]
[356480928,1742508648868,-500.0,0.00049588,120]
[356480929,1742508648877,-500.0,0.00049588,120]
[356480930,1742508648887,-479.69,0.00049588,120]
[356480931,1742508648897,-211.91,0.00049588,120]
[356480932,1742508648906,-380.16,0.00049588,120]
[356480933,1742508648915,-1011.74,0.00049588,120]
[356480934,1742508648925,-508.8977615,0.00049589,120]
[356480935,1742508648934,-500.0,0.00049589,120]
[356480936,1742508648943,-765.29,0.00049589,120]
[356480937,1742508648952,-500.0,0.00049658,120]
[356480938,1742508648961,-500.0,0.00049862,120]
[356480939,1742508648971,-237.71,0.00049862,120]
[356480940,1742508648980,-1011.74,0.00049862,120]
[356480941,1742508648989,-500.0,0.00049863,120]
[356480942,1742508648998,-765.29,0.00049863,120]
[356480943,1742508649008,-297.34671385,0.000499,11]
[356480944,1742508649017,-9126.79166373,0.00049969,4]
[356480945,1742508649026,-18253.5833275,0.0004998,4]
[356480946,1742508649036,-54760.7499824,0.0004999,4]
[356480947,1742508649046,-100000.0,0.0005,50]
[356480948,1742508649055,-500.0,0.00050136,120]
[356480949,1742508649065,-500.0,0.00050136,120]
[356480950,1742508649074,-765.29,0.00050136,120]
[356480951,1742508649083,-1011.74,0.00050136,120]
[356480952,1742508649093,-572.0,0.00050172,120]
[356480953,1742508649102,-150.05,0.00050234,120]
[356480954,1742508649112,-153.50333972,0.0005035,120]
[356480955,1742508649122,-9126.79166373,0.000504,4]
[356480956,1742508649131,-580.0,0.0005041,7]
[356480957,1742508649141,-500.0,0.0005041,120]
[356480958,1742508649150,-500.0,0.0005041,120]
[356480959,1742508649159,-765.29,0.0005041,120]
[356480960,1742508649169,-1011.74,0.0005041,120]
[356480961,1742508649178,-718.09736564,0.00050415,2]
[356480962,1742508649187,-500.0,0.00050684,120]
[356480963,1742508649196,-500.0,0.00050684,120]
[356480964,1742508649206,-765.29,0.00050684,120]
[356480965,1742508649215,-1011.74,0.00050684,120]
[356480966,1742508649224,-329.67,0.000507,14]
[356480967,1742508649233,-152.16,0.00050759,120]
[356480968,1742508649242,-150.0,0.00050958,120]
[356480969,1742508649252,-500.0,0.00050958,120]
[356480970,1742508649261,-500.0,0.00050958,120]
[356480971,1742508649271,-765.29,0.00050958,120]
[356480972,1742508649280,-1011.74,0.00050958,120]
[356480973,1742508649290,-153.50333972,0.00051127,120]
[356480974,1742508649300,-500.0,0.00051232,120]
[356480975,1742508649309,-500.0,0.00051232,120]
[356480976,1742508649318,-765.29,0.00051232,120]
[356480977,1742508649328,-1011.74,0.00051232,120]
[356480978,1742508649337,-9126.79166373,0.00051486,4]
[356480979,1742508649347,-500.0,0.00051506,120]
[356480980,1742508649356,-500.0,0.00051506,120]
[356480981,1742508649366,-765.29,0.00051506,120]
[356480982,1742508649376,-1011.74,0.00051506,120]
[356480983,1742508649386,-718.09736564,0.00051637,2]
[356480984,1742508649395,-500.0,0.0005178,120]
[356480985,1742508649404,-500.0,0.0005178,120]
[356480986,1742508649414,-765.29,0.0005178,120]
[356480987,1742508649423,-1011.74,0.0005178,120]
[356480988,1742508649432,-297.34671385,0.000519,12]
[356480989,1742508649442,-173.3194,0.0005192,92]
[356480990,1742508649451,-211.97543529,0.00052054,120]
[356480991,1742508649461,-500.0,0.00052054,120]
[356480992,1742508649470,-765.29,0.00052054,120]
[356480993,1742508649480,-1011.74,0.00052054,120]
[356480994,1742508649489,-9126.79166373,0.0005209,4]
[356480995,1742508649499,-2000.0,0.000521,2]
[356480996,1742508649508,-2000.0,0.000521,2]
[356480997,1742508649517,-3938.0,0.00052322,120]
[356480998,1742508649527,-151.0,0.00052322,120]
[356480999,1742508649536,-1014.0,0.00052322,120]
[356481000,1742508649546,-150.0,0.00052328,120]
[356481001,1742508649555,-444.33,0.00052328,120]
[356481002,1742508649565,-765.29,0.00052328,120]
[356481003,1742508649575,-1011.74,0.00052328,120]
[356481004,1742508649584,-1275.0,0.00052349,30]
[356481005,1742508649593,-1002.11201907,0.00052452,10]
[356481006,1742508649603,-9126.79166373,0.00052592,4]
[356481007,1742508649612,-765.29,0.00052602,120]
[356481008,1742508649622,-1011.74,0.00052602,120]
[356481009,1742508649632,-150.05,0.0005278,120]
[356481010,1742508649641,-165.66543716,0.0005282,28]
[356481011,1742508649651,-718.09736564,0.00052859,2]
[356481012,1742508649661,-765.37801675,0.00052876,120]
[356481013,1742508649670,-1011.74,0.00052876,120]
[356481014,1742508649679,-1275.0,0.00052889,30]
[356481015,1742508649689,-158.68254028,0.0005303,30]
[356481016,1742508649698,-170.21,0.0005313,2]
[356481017,1742508649707,-1011.77440221,0.0005315,120]
[356481018,1742508649717,-572.0,0.00053172,120]
[356481019,1742508649726,-9126.79166373,0.00053346,4]
[356481020,1742508649736,-1275.0,0.00053429,30]
[356481021,1742508649745,-150.0,0.00053698,120]
[356481022,1742508649754,-297.34671385,0.000539,13]
[356481023,1742508649763,-1275.0,0.00053968,30]
[356481024,1742508649773,-415.8081593,0.00053968,30]
[356481025,1742508649782,-23435.0,0.00054007,2]
[356481026,1742508649792,-718.09736564,0.00054081,2]
[356481027,1742508649803,-160.5,0.00054384,120]
[356481028,1742508649813,-173.3194,0.0005442,97]
[356481029,1742508649822,-1275.0,0.00054508,30]
[356481030,1742508649832,-242.3,0.00054643,120]
[356481031,1742508649842,-344.46623481,0.00054694,57]
[356481032,1742508649852,-500.0,0.00054794,120]
[356481033,1742508649861,-500.0,0.00054794,120]
[356481034,1742508649871,-434.86002883,0.00054794,120]
[356481035,1742508649883,-2000.0,0.000548,2]
[356481036,1742508649892,-1000.0,0.000548,2]
[356481037,1742508649902,-1000.0,0.00054826,120]
[356481038,1742508649911,-9126.79166373,0.00054914,4]
[356481039,1742508649921,-268.35,0.00054972,120]
[356481040,1742508649931,-1275.0,0.00055048,30]
[356481041,1742508649940,-150.0,0.00055067,120]
[356481042,1742508649950,-152.16,0.00055238,120]
[356481043,1742508649960,-718.09736564,0.00055303,2]
[356481044,1742508649971,-3938.0,0.00055322,120]
[356481045,1742508649980,-151.0,0.00055322,120]
[356481046,1742508649990,-1014.0,0.00055322,120]
[356481047,1742508650000,-150.05,0.00055325,120]
[356481048,1742508650010,-344.46623478,0.00055562,61]
[356481049,1742508650020,-1275.0,0.00055587,30]
[356481050,1742508650029,-165.66543716,0.0005586,28]
[356481051,1742508650040,-297.34671385,0.000559,13]
[356481052,1742508650049,-54760.7499824,0.00056057,4]
[356481053,1742508650059,-9126.79166373,0.00056057,4]
[356481054,1742508650069,-100000.0,0.00056067,56]
[356481055,1742508650079,-572.0,0.00056172,120]
[356481056,1742508650089,-344.46623478,0.00056429,64]
[356481057,1742508650099,-150.0,0.00056437,120]
[356481058,1742508650108,-27380.3749912,0.00056465,4]
[356481059,1742508650118,-88888.0,0.00056475,120]
[356481060,1742508650128,-151.032106,0.00056498,120]
[356481061,1742508650137,-718.09736564,0.00056524,2]
[356481062,1742508650147,-200.0,0.00056568,120]
[356481063,1742508650156,-173.3194,0.0005692,103]
[356481064,1742508650166,-420.4463636,0.00057191,120]
[356481065,1742508650176,-344.46623478,0.00057297,68]
[356481066,1742508650186,-2000.0,0.000575,90]
[356481067,1742508650195,-1000.0,0.000575,90]
[356481068,1742508650205,-219.12702944,0.0005764,8]
[356481069,1742508650214,-718.09736564,0.00057746,2]
[356481070,1742508650224,-150.0,0.00057807,120]
[356481071,1742508650234,-1474.11712761,0.0005782,30]
[356481072,1742508650244,-150.05,0.00057871,120]
[356481073,1742508650254,-200.0,0.00057893,120]
[356481074,1742508650264,-297.34671385,0.000579,14]
[356481075,1742508650274,-12760.96,0.000579,2]
[356481076,1742508650284,-500.0,0.0005796,120]
[356481077,1742508650294,-500.0,0.0005796,120]
[356481078,1742508650303,-500.0,0.0005796,120]
[356481079,1742508650313,-609.19,0.0005796,120]
[356481080,1742508650322,-25000.0,0.00058,30]
[356481081,1742508650332,-344.46623478,0.00058165,72]
[356481082,1742508650341,-500.0,0.00058271,120]
[356481083,1742508650351,-150.0,0.00058273,14]
[356481084,1742508650360,-287.88282979,0.00058285,14]
[356481085,1742508650370,-150.0,0.00058298,14]
[356481086,1742508650380,-500.0,0.00058298,120]
[356481087,1742508650390,-3938.0,0.00058322,120]
[356481088,1742508650400,-151.0,0.00058322,120]
[356481089,1742508650409,-1014.0,0.00058322,120]
[356481090,1742508650419,-500.0,0.00058326,120]
[356481091,1742508650429,-500.0,0.00058353,120]
[356481092,1742508650438,-500.0,0.00058381,120]
[356481093,1742508650448,-500.0,0.00058408,120]
[356481094,1742508650457,-150.0,0.00058414,14]
[356481095,1742508650467,-150.0,0.00058427,14]
[356481096,1742508650477,-500.0,0.00058435,120]
[356481097,1742508650487,-150.0,0.00058449,14]
[356481098,1742508650498,-150.0,0.0005846,14]
[356481099,1742508650508,-500.0,0.00058463,120]
[356481100,1742508650518,-150.0,0.00058463,14]
[356481101,1742508650528,-150.0,0.00058473,14]
[356481102,1742508650539,-150.0,0.00058482,14]
[356481103,1742508650549,-500.0,0.0005849,120]
[356481104,1742508650559,-151.032106,0.00058498,120]
[356481105,1742508650569,-155.08,0.000585,60]
[356481106,1742508650579,-155.08,0.000585,60]
[356481107,1742508650588,-155.08,0.000585,60]
[356481108,1742508650598,-155.08,0.000585,60]
[356481109,1742508650608,-150.0,0.00058513,14]
[356481110,1742508650617,-500.0,0.00058518,120]
[356481111,1742508650627,-150.0,0.0005852,14]
[356481112,1742508650637,-150.0,0.00058531,14]
[356481113,1742508650647,-681.59959992,0.00058544,35]
[356481114,1742508650656,-264144.54235266,0.00058544,35]
[356481115,1742508650666,-500.0,0.00058545,120]
[356481116,1742508650676,-150.0,0.00058563,14]
[356481117,1742508650685,-665.30674507,0.00058572,120]
[356481118,1742508650695,-150.0,0.00058574,14]
[356481119,1742508650705,-150.0,0.00058608,14]
[356481120,1742508650714,-150.0,0.00058629,14]
[356481121,1742508650723,-150.0,0.0005865,14]
[356481122,1742508650733,-150.0,0.00058656,14]
[356481123,1742508650743,-150.0,0.00058699,14]
[356481124,1742508650753,-150.0,0.00058703,14]
[356481125,1742508650762,-150.0,0.00058733,14]
[356481126,1742508650772,-1032.09266867,0.00058751,53]
[356481127,1742508650782,-900.0,0.00058751,53]
[356481128,1742508650791,-900.0,0.00058751,53]
[356481129,1742508650803,-900.0,0.00058751,53]
[356481130,1742508650813,-900.0,0.00058751,53]
[356481131,1742508650823,-900.0,0.00058751,53]
[356481132,1742508650832,-900.0,0.00058751,53]
[356481133,1742508650843,-900.0,0.00058751,53]
[356481134,1742508650853,-900.0,0.00058751,53]
[356481135,1742508650862,-900.0,0.00058751,53]
[356481136,1742508650871,-900.0,0.00058751,53]
[356481137,1742508650883,-900.0,0.00058751,73]
[356481138,1742508650893,-150.0,0.00058752,14]
[356481139,1742508650902,-500.0,0.00058773,15]
[356481140,1742508650912,-150.0,0.00058776,14]
[356481141,1742508650921,-100000.0,0.000588,58]
[356481142,1742508650931,-50184.41791175,0.000588,120]
[356481143,1742508650940,-150.0,0.00058801,14]
[356481144,1742508650949,-150.0,0.00058807,14]
[356481145,1742508650958,-150.0,0.0005881,14]
[356481146,1742508650967,-150.0,0.00058811,14]
[356481147,1742508650977,-150.0,0.00058843,14]
[356481148,1742508650986,-150.0,0.00058871,14]
[356481149,1742508650996,-150.0,0.00058884,14]
[356481150,1742508651005,-150.0,0.00058891,14]
[356481151,1742508651014,-150.0,0.00058896,14]
[356481152,1742508651024,-25000.0,0.000589,30]
[356481153,1742508651034,-158.68254028,0.000589,37]
[356481154,1742508651045,-165.66543716,0.000589,28]
[356481155,1742508651056,-1466.10409497,0.000589,2]
[356481156,1742508651066,-318.76045979,0.000589,2]
[356481157,1742508651075,-150.0,0.00058906,14]
[356481158,1742508651084,-150.0,0.00058926,14]
[356481159,1742508651094,-1557.59,0.0005895,120]
[356481160,1742508651104,-718.09736564,0.00058968,2]
[356481161,1742508651114,-250.0,0.0005897,30]
[356481162,1742508651124,-500.0,0.00058973,15]
[356481163,1742508651134,-100000.0,0.00059,59]
[356481164,1742508651143,-100000.0,0.00059,69]
[356481165,1742508651153,-100000.0,0.00059,79]
[356481166,1742508651162,-387.06549239,0.00059,120]
[356481167,1742508651172,-925516.54888926,0.00059,120]
[356481168,1742508651182,-1000000.0,0.00059,120]
[356481170,1742508651191,-591235.22133772,0.00059,120]
[356481171,1742508651899,-500.0,0.00046848,120]
[356481172,1742508651909,-153.50333972,0.00051905,120]
[356481173,1742508651919,-9007.74019547,0.00059,120]
[356481174,1742508652228,150.29,0.00013699,2]
[356481175,1742508652280,150.29,0.00032877,2]
[356481176,1742508653532,213.88214,0.00027818,2]
[356481177,1742508653856,213.88214,0.00027819,2]
[356481178,1742508654172,213.88214,0.00027829,2]
[356481179,1742508654486,213.88214,0.0002783,2]
[356481180,1742508654804,213.88214,0.00027874,2]
[356481181,1742508655555,213.88214,0.00027878,2]
[356481182,1742508655874,213.88214,0.00027881,2]
[356481183,1742508656192,213.88214,0.00027884,2]
[356481184,1742508656524,213.88214,0.00027928,2]
[356481185,1742508656855,213.88214,0.00027933,2]
[356481186,1742508657197,213.88214,0.00027936,2]
[356481187,1742508657504,213.88214,0.00027939,2]
[356481188,1742508657818,213.88214,0.00027979,2]
[356481189,1742508658167,213.88214,0.00027979,2]
[356481190,1742508658493,213.88214,0.00027981,2]
[356481191,1742508658830,213.88214,0.00027983,2]
[356481192,1742508659155,213.88214,0.00027994,2]
[356481193,1742508659499,213.88214,0.00028034,2]
[356481194,1742508659890,213.88214,0.00028037,2]
[356481195,1742508660199,213.88214,0.00028049,2]
[356481196,1742508660947,213.88214,0.00028089,2]
[356481197,1742508661264,213.88214,0.00028103,2]
[356481198,1742508661572,213.88214,0.00028144,2]
[356481199,1742508661887,213.88214,0.00028198,2]
[356481200,1742508662203,213.88214,0.00028253,2]
[356481201,1742508669560,174.830109,0.00027818,2]
[356481202,1742508669871,174.830109,0.00027819,2]
[356481203,1742508670187,174.830109,0.00027829,2]
[356481204,1742508670531,174.830109,0.0002783,2]
[356481205,1742508670839,174.830109,0.00027874,2]
[356481206,1742508672847,174.830109,0.00027878,2]
[356481207,1742508673159,174.830109,0.00027881,2]
[356481208,1742508673504,174.830109,0.00027884,2]
[356481209,1742508673801,174.830109,0.00027928,2]
[356481210,1742508674119,174.830109,0.00027933,2]
[356481211,1742508674442,174.830109,0.00027936,2]
[356481212,1742508674755,174.830109,0.00027939,2]
[356481213,1742508675121,174.830109,0.00027979,2]
[356481214,1742508675426,174.830109,0.00027979,2]
[356481215,1742508675760,174.830109,0.00027981,2]
[356481216,1742508676081,174.830109,0.00027983,2]
[356481217,1742508676399,174.830109,0.00027994,2]
[356481218,1742508676694,174.830109,0.00028034,2]
[356481219,1742508677002,174.830109,0.00028037,2]
[356481220,1742508677344,174.830109,0.00028049,2]
[356481221,1742508677772,174.830109,0.00028089,2]
[356481222,1742508678104,174.830109,0.00028103,2]
[356481223,1742508678348,159.862839,0.00027818,2]
[356481224,1742508678426,174.830109,0.00028144,2]
[356481225,1742508678747,174.830109,0.00028198,2]
[356481226,1742508679060,174.830109,0.00028253,2]
[356481227,1742508694197,363.82,0.00035,2]
[356481228,1742508726049,211.6895525,0.00031463,30]
[356481229,1742508903231,154.77593076,0.00027973,5]
[356481230,1742508930961,250.0,0.00021,2]
[356481231,1742508932054,300.0,0.00023,2]
[356481232,1742508933139,350.0,0.00025,2]
[356481233,1742508934369,400.0,0.00027,2]
[356481234,1742508935493,450.0,0.00029,2]
[356481235,1742508936608,500.0,0.00031,2]
[356481236,1742508937692,550.0,0.00033,2]
[356481237,1742508938771,600.0,0.00035,2]
[356481238,1742509305290,276.517,0.000343,2]
[356481239,1742509379799,500.0,0.00035,30]
[356481240,1742509391050,215.82416629,0.00032877,2]
[356481241,1742509508786,45452.88290295,0.00012,2]
[356481242,1742509508814,50000.0,0.00012,2]
[356481243,1742509508842,50000.0,0.00012,2]
[356481244,1742509508870,50000.0,0.00012,2]
[356481245,1742509508901,50000.0,0.00012,2]
[356481246,1742509508928,50000.0,0.00012,2]
[356481247,1742509508955,50000.0,0.00012,2]
[356481248,1742509508982,50000.0,0.00012,2]
[356481249,1742509509008,50000.0,0.00012,2]
[356481250,1742509509037,48350.0,0.00012,2]
[356481251,1742509509064,49000.0,0.00012,2]
[356481252,1742509509090,50000.0,0.00012,2]
[356481253,1742509533504,-50000.0,0.00012,2]
[356481254,1742509534362,-50000.0,0.00012,2]
[356481255,1742509535113,-50000.0,0.00012,2]
[356481256,1742509535771,-50000.0,0.00012,2]
[356481257,1742509536536,-50000.0,0.00012,2]
[356481258,1742509537256,-50000.0,0.00012,2]
[356481259,1742509537976,-50000.0,0.00012,2]
[356481260,1742509538750,-50000.0,0.00012,2]
[356481261,1742509539473,-50000.0,0.00012,2]
[356481262,1742509540276,-50000.0,0.00012,2]
[356481263,1742509541119,-50000.0,0.00012,2]
[356481264,1742509541976,-50000.0,0.00012,2]
[356481265,1742509542842,-50000.0,0.00012,2]
[356481266,1742509543622,-50000.0,0.00012,2]
[356481267,1742509544436,-50000.0,0.00012,2]
[356481268,1742509545313,-50000.0,0.00012,2]
[356481269,1742509546198,-50000.0,0.00012,2]
[356481270,1742509547074,-50000.0,0.00012,2]
[356481271,1742509548005,-50000.0,0.00012,2]
[356481272,1742509549038,-50000.0,0.00012,2]
[356481273,1742509556589,-50000.0,0.00012,2]
[356481274,1742509557241,-50000.0,0.00012,2]
[356481275,1742509557977,-50000.0,0.00012,2]
[356481276,1742509565718,-33136.89712691,0.00012,2]
[356481278,1742509677451,16863.10287309,0.0001,2]
[356481279,1742509677481,50000.0,0.0001,2]
[356481280,1742509677511,50000.0,0.0001,2]
[356481281,1742509743427,-50000.0,0.0001,2]
[356481282,1742509744580,-50000.0,0.0001,2]
[356481283,1742509745462,-50000.0,0.0001,2]
[356481284,1742509746274,545.5,0.00031521,30]
[356481285,1742509746323,-50000.0,0.0001,2]
[356481286,1742509747117,-50000.0,0.0001,2]
[356481287,1742509748028,-50000.0,0.0001,2]
[356481288,1742509748869,-50000.0,0.0001,2]
[356481289,1742509749732,-50000.0,0.0001,2]
[356481290,1742509751799,-50000.0,0.0001,2]
[356481291,1742509752153,-50000.0,0.0001,2]
[356481292,1742509753272,-50000.0,0.0001,2]
[356481293,1742509754145,-4893.858634,0.0001,2]
[356481294,1742509754212,-50000.0,0.0001,2]
[356481295,1742509765678,-50000.0,0.0001,2]
[356481296,1742509766616,-50000.0,0.0001,2]
[356481297,1742509767585,-50000.0,0.0001,2]
[356481298,1742509774972,-3840.32675938,0.0001,2]
[356481299,1742509775014,-3840.32675938,0.0001,2]
[356481300,1742509775052,-3840.32675938,0.0001,2]
[356481303,1742509775095,-3840.32675938,0.0001,2]
[356481305,1742509775147,-3840.32675938,0.0001,2]